bitfinex-derivatives/quotes_ETHF0:USTF0_20250528
["timestamp","ask_amount","ask_price","bid_price","bid_amount"]
[1748446877100,1.39314,2636.8,2636.7,1.52334759]
[1748446877293,1.39314,2636.8,2636.7,1.52333643]
[1748446877496,1.39314,2636.8,2636.7,1.51666189]
[1748446877799,1.39314,2636.8,2636.7,1.51662341]
[1748446878596,0.87680163,2636.9,2636.7,1.51662341]
[1748446878802,0.87680163,2636.9,2636.8,1.59922341]
[1748446879099,0.87680163,2636.9,2636.8,1.59880001]
[1748446879301,0.87680163,2636.9,2636.8,1.3057]
[1748446879501,0.87680163,2636.9,2636.8,1.59881504]
[1748446880195,0.11859163,2636.9,2636.8,1.3057]
[1748446880393,0.11859163,2636.9,2636.8,1.59871167]
[1748446880597,0.87678163,2636.9,2636.8,2.26365096]
[1748446880894,0.87678163,2636.9,2636.8,2.26362012]
[1748446881200,0.87678163,2636.9,2636.8,19.38561601]
[1748446881600,0.87678163,2636.9,2636.8,19.0927]
[1748446881800,0.87678163,2636.9,2636.8,19.38532306]
[1748446882204,0.87678163,2636.9,2636.8,1.59833128]
[1748446882402,0.87678163,2636.9,2636.8,19.38433128]
[1748446882599,0.87678163,2636.9,2636.8,19.38431874]
[1748446883198,0.87678163,2636.9,2636.8,19.0917]
[1748446883397,0.87678163,2636.9,2636.8,19.38432673]
[1748446883603,0.87678163,2636.9,2636.8,19.0917]
[1748446883803,0.87678163,2636.9,2636.8,19.38426256]
[1748446884003,0.87678163,2636.9,2636.8,19.384266]
[1748446884201,0.87678163,2636.9,2636.8,19.38427089]
[1748446884398,0.87678163,2636.9,2636.8,19.38427132]
[1748446885007,0.87678163,2636.9,2636.8,19.38420113]
[1748446885304,0.87678163,2636.9,2636.8,19.3841967]
[1748446885499,0.88854874,2636.9,2636.8,19.0917]
[1748446885803,0.13035874,2636.9,2636.8,19.38415926]
[1748446886003,0.88854874,2636.9,2636.8,19.38115926]
[1748446886804,0.88854874,2636.9,2636.8,19.38108]
[1748446887199,0.88854874,2636.9,2636.8,19.38108793]
[1748446887398,0.13035874,2636.9,2636.8,19.0887]
[1748446887601,0.13035874,2636.9,2636.8,19.38108673]
[1748446887904,0.13035874,2636.9,2636.8,19.0887]
[1748446888106,0.13035874,2636.9,2636.8,19.38102612]
[1748446888305,0.13035874,2636.9,2636.8,19.38106885]
[1748446888601,0.13035874,2636.9,2636.8,20.13929312]
[1748446888806,0.13035874,2636.9,2636.8,20.13932552]
[1748446889299,0.13035874,2636.9,2636.8,20.13933418]
[1748446889704,0.13035874,2636.9,2636.8,20.13930612]
[1748446889906,0.13035874,2636.9,2636.8,20.13929371]
[1748446890100,0.13035874,2636.9,2636.8,19.84692]
[1748446890299,0.13035874,2636.9,2636.8,20.13932155]
[1748446890705,0.88854874,2636.9,2636.8,1.59810155]
[1748446890904,0.13035874,2636.9,2636.8,24.09132155]
[1748446891207,0.13035874,2636.9,2636.8,24.09112497]
[1748446891802,0.13035874,2636.9,2636.8,29.09112497]
[1748446891997,0.13035874,2636.9,2636.8,28.79892]
[1748446892301,0.13035874,2636.9,2636.8,29.09070795]
[1748446892499,0.13035874,2636.9,2636.8,29.62123125]
[1748446892697,0.75804,2637.5,2637.0,1.89539]
[1748446893001,0.75804,2637.5,2637.4,3.2078]
[1748446893200,0.75804,2637.5,2637.4,4.02998488]
[1748446893401,0.75804,2637.5,2637.4,5.27366311]
[1748446893697,0.75804,2637.5,2637.4,4.4515]
[1748446893901,0.75804,2637.5,2637.4,5.27363123]
[1748446894102,0.75804,2637.5,2637.4,4.98198784]
[1748446894308,0.75804,2637.5,2637.4,5.27357232]
[1748446894509,0.75804,2637.5,2637.4,5.27333986]
[1748446894906,0.75804,2637.5,2637.4,4.4515]
[1748446895109,0.75804,2637.5,2637.4,5.27316798]
[1748446895311,0.75804,2637.5,2637.4,5.27334646]
[1748446895612,0.75804,2637.5,2637.4,4.98181166]
[1748446895809,0.75804,2637.5,2637.4,5.27336112]
[1748446896005,0.75804,2637.5,2637.4,0.82189667]
[1748446896411,0.75804,2637.5,2637.2,0.00569163]
[1748446896412,0.75808,2637.3,2637.2,0.00569163]
[1748446896608,0.75808,2637.3,2637.2,0.82798155]
[1748446897013,1.40958,2637.3,2637.2,0.82798155]
[1748446897216,1.40958,2637.3,2637.2,0.82781263]
[1748446897813,1.40958,2637.3,2637.2,0.82831666]
[1748446898414,1.40958,2637.3,2637.2,0.82870201]
[1748446898624,1.40958,2637.3,2637.2,0.00569163]
[1748446898914,1.40958,2637.3,2637.2,0.82872105]
[1748446900004,1.40958,2637.3,2637.2,0.82918607]
[1748446900208,1.40958,2637.3,2637.2,0.00569163]
[1748446900415,1.40958,2637.3,2637.2,0.82953362]
[1748446901304,1.40958,2637.3,2637.2,0.83004816]
[1748446901911,1.40958,2637.3,2637.2,0.83004875]
[1748446902210,1.40958,2637.3,2637.2,0.83062614]
[1748446902711,1.40958,2637.3,2637.2,0.00569163]
[1748446902908,1.40958,2637.3,2637.2,0.831533]
[1748446903415,1.40958,2637.3,2637.2,0.8316863]
[1748446903614,1.40958,2637.3,2637.2,1.3647155]
[1748446903814,2.74398,2637.3,2637.2,0.83172204]
[1748446904016,2.74398,2637.3,2637.2,1.36475265]
[1748446905417,2.74398,2637.3,2637.2,1.36497006]
[1748446905616,2.74398,2637.3,2637.2,1.36501432]
[1748446906415,2.74398,2637.3,2637.2,1.36502496]
[1748446906611,2.74398,2637.3,2637.2,1.36510335]
[1748446907017,2.74398,2637.3,2637.2,1.36510133]
[1748446907218,2.74398,2637.3,2637.2,1.36512676]
[1748446907511,2.74398,2637.3,2637.2,0.53867503]
[1748446907819,2.74398,2637.3,2637.2,1.3653466]
[1748446908212,2.74398,2637.3,2637.2,0.83193822]
[1748446908514,2.74398,2637.3,2637.2,1.36546011]
[1748446908915,2.74398,2637.3,2637.2,1.07214092]
[1748446909118,2.74398,2637.3,2637.2,1.36543459]
[1748446909314,2.74398,2637.3,2637.2,1.07214074]
[1748446909510,2.81861908,2637.3,2637.2,1.36544995]
[1748446910217,2.81861908,2637.3,2637.2,0.53867503]
[1748446910413,2.81861908,2637.3,2637.2,1.36587508]
[1748446910613,2.81861908,2637.3,2637.2,1.07250973]
[1748446910807,2.81861908,2637.3,2637.2,0.53867503]
[1748446911013,2.81861908,2637.3,2637.2,1.36606794]
[1748446911417,2.81861908,2637.3,2637.2,1.36619904]
[1748446911619,2.81861908,2637.3,2637.2,1.36618168]
[1748446911815,2.81861908,2637.3,2637.2,1.36612216]
[1748446912212,2.81861908,2637.3,2637.2,1.36602153]
[1748446912418,2.81861908,2637.3,2637.2,1.36610138]
[1748446912618,1.48421908,2637.3,2637.2,1.36610138]
[1748446912814,1.48421908,2637.3,2637.2,0.53867503]
[1748446913119,1.48421908,2637.3,2637.2,1.3660514]
[1748446913315,1.48421908,2637.3,2637.2,1.36616781]
[1748446913511,1.48421908,2637.3,2637.2,0.53867503]
[1748446913711,1.48421908,2637.3,2637.2,1.36616778]
[1748446913913,1.48421908,2637.3,2637.2,1.3661698]
[1748446914107,1.48421908,2637.3,2637.2,0.53867503]
[1748446914313,1.48421908,2637.3,2637.2,1.36614307]
[1748446915016,0.83271908,2637.3,2637.2,1.36629449]
[1748446915317,0.83271908,2637.3,2637.2,4.57409449]
[1748446915508,0.83271908,2637.3,2637.2,3.74647503]
[1748446915917,0.83271908,2637.3,2637.2,4.039797]
[1748446916115,0.83271908,2637.3,2637.2,4.03975256]
[1748446917018,0.83271908,2637.3,2637.2,3.74647503]
[1748446917217,0.83271908,2637.3,2637.2,4.03972587]
[1748446917419,0.83271908,2637.3,2637.2,4.03970589]
[1748446917621,0.83271908,2637.3,2637.2,4.03965415]
[1748446918325,0.83271908,2637.3,2637.2,4.03970827]
[1748446918519,0.83271908,2637.3,2637.2,4.03932279]
[1748446919025,0.07463908,2637.3,2637.2,9.79742912]
[1748446919227,0.758,2637.5,2637.4,0.75801]
[1748446919419,0.75797,2637.6,2637.4,6.8156481]
[1748446919631,0.75797,2637.6,2637.5,6.6464581]
[1748446919825,0.75797,2637.6,2637.5,7.64358941]
[1748446920018,0.75797,2637.6,2637.5,6.88560941]
[1748446920221,0.75797,2637.6,2637.5,6.88558865]
[1748446920529,0.75797,2637.6,2637.5,12.6435624]
[1748446920825,0.75797,2637.6,2637.5,11.13996617]
[1748446921027,0.75797,2637.6,2637.5,12.1975803]
[1748446921222,0.75797,2637.6,2637.5,10.06765279]
[1748446921423,0.75797,2637.6,2637.5,10.38521023]
[1748446921622,0.75797,2637.6,2637.5,10.38523375]
[1748446921923,0.75797,2637.6,2637.5,9.85338096]
[1748446922225,0.75797,2637.6,2637.5,9.84681193]
[1748446922426,0.75797,2637.6,2637.5,12.41976149]
[1748446923124,0.75797,2637.6,2637.5,11.66061999]
[1748446923325,0.75797,2637.6,2637.5,12.41860027]
[1748446923525,0.75797,2637.6,2637.5,6.6606257]
[1748446923721,0.75797,2637.6,2637.5,6.35080821]
[1748446923923,0.75797,2637.6,2637.5,6.66063116]
[1748446924830,0.83260908,2637.6,2637.5,6.66063116]
[1748446925132,0.83260908,2637.6,2637.5,6.66040995]
[1748446925432,0.83260908,2637.6,2637.5,28.3664101]
[1748446925630,0.83260908,2637.6,2637.5,28.05680821]
[1748446925928,0.83260908,2637.6,2637.5,28.36638734]
[1748446926129,0.83260908,2637.6,2637.5,26.55137913]
[1748446926329,0.83260908,2637.6,2637.5,26.55128834]
[1748446927131,0.83260908,2637.6,2637.5,26.55122923]
[1748446927332,0.83260908,2637.6,2637.5,26.55120951]
[1748446928425,0.83260908,2637.6,2637.5,26.55118363]
[1748446928628,0.83260908,2637.6,2637.5,27.30915868]
[1748446929139,0.83260908,2637.6,2637.5,27.30913231]
[1748446929637,0.83260908,2637.6,2637.5,27.30911666]
[1748446929838,0.83260908,2637.6,2637.5,27.30909137]
[1748446930037,0.83260908,2637.6,2637.5,27.30909392]
[1748446930238,0.83260908,2637.6,2637.5,27.3090922]
[1748446930435,0.83260908,2637.6,2637.5,26.55111229]
[1748446930639,0.83260908,2637.6,2637.5,26.55083693]
[1748446930832,0.83260908,2637.6,2637.5,26.55082221]
[1748446931034,0.83260908,2637.6,2637.5,27.30880221]
[1748446931641,0.07463908,2637.6,2637.5,27.30880221]
[1748446931944,0.83259908,2637.6,2637.5,26.99978]
[1748446932142,0.83259908,2637.6,2637.5,27.30880812]
[1748446932439,0.83259908,2637.6,2637.5,27.30879732]
[1748446932836,0.83259908,2637.6,2637.5,26.54580672]
[1748446933040,0.83259908,2637.6,2637.5,27.30378672]
[1748446933247,0.83259908,2637.6,2637.5,27.30371893]
[1748446933543,0.83259908,2637.6,2637.5,27.30371532]
[1748446933839,0.83259908,2637.6,2637.5,27.30373321]
[1748446934044,0.83259908,2637.6,2637.5,26.99478]
[1748446934341,0.83259908,2637.6,2637.5,27.30375845]
[1748446934842,0.83259908,2637.6,2637.5,8.79177845]
[1748446935145,0.00565141,2637.7,2637.5,31.54278893]
[1748446935446,1.53404,2638.2,2638.1,0.75781]
[1748446935651,1.53404,2638.2,2638.1,8.10700924]
[1748446935840,1.53404,2638.2,2638.1,8.10700223]
[1748446936034,1.53404,2638.2,2638.1,25.21369223]
[1748446936351,1.53404,2638.2,2638.1,21.267649]
[1748446936843,1.53404,2638.2,2638.1,26.5062241]
[1748446937044,1.53404,2638.2,2638.1,4.8092241]
[1748446937239,1.53404,2638.2,2638.1,26.5052241]
[1748446937440,1.53404,2638.2,2638.1,26.50532698]
[1748446938035,1.53404,2638.2,2638.1,22.55932845]
[1748446938236,1.53404,2638.2,2638.1,21.26672482]
[1748446938438,1.53404,2638.2,2638.1,21.2667763]
[1748446938633,1.53404,2638.2,2638.1,20.9578]
[1748446938836,1.53404,2638.2,2638.1,21.26664572]
[1748446939445,1.53404,2638.2,2638.1,21.26661972]
[1748446939652,1.53404,2638.2,2638.1,3.51661972]
[1748446939944,1.60867908,2638.2,2638.1,21.26561972]
[1748446940142,1.60867908,2638.2,2638.1,3.51661551]
[1748446940343,1.60867908,2638.2,2638.1,0.30881551]
[1748446940546,0.75781,2638.1,2638.0,17.748]
[1748446940746,3.33191,2638.1,2638.0,18.05690931]
[1748446941341,3.33191,2638.1,2638.0,18.81482524]
[1748446941549,1.89372,2639.3,2638.0,22.00298524]
[1748446941847,0.75764,2638.7,2638.6,3.96545]
[1748446942149,0.75764,2638.7,2638.6,7.46248023]
[1748446942349,0.75764,2638.7,2638.6,7.46244741]
[1748446942554,0.75764,2638.7,2638.6,22.00164741]
[1748446943242,0.75764,2638.7,2638.6,0.30864741]
[1748446943444,0.75764,2638.7,2638.6,18.05542784]
[1748446943642,0.7577,2638.5,2638.4,0.00569163]
[1748446944047,5.7577,2638.5,2638.4,0.85728594]
[1748446944351,0.7577,2638.5,2638.4,0.85737553]
[1748446944650,5.7577,2638.5,2638.4,0.85842661]
[1748446945247,5.7577,2638.5,2638.4,0.85863998]
[1748446945556,5.7577,2638.5,2638.4,0.00569163]
[1748446945747,5.7577,2638.5,2638.4,0.85895167]
[1748446945947,0.7577,2638.5,2638.4,0.85897428]
[1748446946255,0.7577,2638.5,2638.4,0.00569163]
[1748446946458,0.7577,2638.5,2638.4,0.85896905]
[1748446946646,0.7577,2638.5,2638.4,0.85897148]
[1748446947147,0.7577,2638.5,2638.4,0.85894964]
[1748446947454,0.7577,2638.5,2638.4,0.85892608]
[1748446947955,0.7577,2638.5,2638.4,0.85890834]
[1748446948157,0.7577,2638.5,2638.4,0.85891021]
[1748446948450,0.7577,2638.5,2638.4,0.85911081]
[1748446948754,0.75769,2638.6,2638.5,0.75769]
[1748446948959,0.75766,2638.7,2638.6,0.75767]
[1748446949158,0.75766,2638.7,2638.6,1.61093579]
[1748446949358,0.75766,2638.7,2638.6,0.85326579]
[1748446949862,0.75766,2638.7,2638.6,22.53426579]
[1748446950056,0.75766,2638.7,2638.6,22.53377179]
[1748446950258,0.75766,2638.7,2638.6,22.53377247]
[1748446950455,0.75764,2638.7,2638.6,22.98284565]
[1748446950652,0.75764,2638.7,2638.6,22.43866]
[1748446950856,0.75764,2638.7,2638.6,23.29139752]
[1748446951154,0.75761,2638.8,2638.7,0.75764]
[1748446951356,0.75761,2638.8,2638.7,2.1672148]
[1748446951560,0.75761,2638.8,2638.7,2.50795378]
[1748446951757,0.75761,2638.8,2638.7,2.81598988]
[1748446951952,0.75761,2638.8,2638.7,2.81599804]
[1748446952159,0.75761,2638.8,2638.7,2.27214672]
[1748446952360,0.75761,2638.8,2638.7,18.59392383]
[1748446952555,2.01051,2638.8,2638.7,18.59392383]
[1748446952956,2.01051,2638.8,2638.7,0.85192383]
[1748446953260,0.75764,2638.7,2638.6,17.742]
[1748446953558,0.75764,2638.7,2638.6,18.59383368]
[1748446953764,0.75764,2638.7,2638.6,18.59383008]
[1748446954057,0.75764,2638.7,2638.6,17.742]
[1748446954263,0.75764,2638.7,2638.6,18.59370367]
[1748446954962,0.75764,2638.7,2638.6,18.5936274]
[1748446955368,0.75764,2638.7,2638.6,0.85162886]
[1748446955656,3.96544,2638.7,2638.6,0.8517011]
[1748446955860,0.7577,2638.5,2638.4,0.00569163]
[1748446956063,0.7577,2638.5,2638.4,0.85781639]
[1748446956459,2.0799,2638.5,2638.4,2.20221639]
[1748446956654,2.0799,2638.5,2638.4,0.85767615]
[1748446956860,2.0799,2638.5,2638.4,0.54960282]
[1748446957068,2.0799,2638.5,2638.4,0.54959951]
[1748446957364,2.0799,2638.5,2638.4,0.85757309]
[1748446957564,2.0799,2638.5,2638.4,0.54953875]
[1748446957863,2.0799,2638.5,2638.4,1.40125862]
[1748446958362,2.0799,2638.5,2638.4,1.40128101]
[1748446958563,2.0799,2638.5,2638.4,0.85755193]
[1748446958859,2.0799,2638.5,2638.4,0.54953875]
[1748446959062,2.0799,2638.5,2638.4,1.40139316]
[1748446959365,2.0799,2638.5,2638.4,1.40139984]
[1748446959665,2.0799,2638.5,2638.4,1.4014209]
[1748446960272,2.0799,2638.5,2638.4,1.4014371]
[1748446960462,2.0799,2638.5,2638.4,1.40143561]
[1748446960770,2.0799,2638.5,2638.4,1.40156]
[1748446961862,2.0799,2638.5,2638.4,1.40195832]
[1748446962063,2.0799,2638.5,2638.4,1.40197601]
[1748446962375,2.0799,2638.5,2638.4,1.40197826]
[1748446962767,2.0799,2638.5,2638.4,1.40203356]
[1748446963262,2.0799,2638.5,2638.4,1.09401463]
[1748446963462,2.0799,2638.5,2638.4,1.40254894]
[1748446963661,2.0799,2638.5,2638.4,1.09412729]
[1748446963863,2.0799,2638.5,2638.4,1.40259845]
[1748446964071,2.0799,2638.5,2638.4,0.54953875]
[1748446964567,2.0799,2638.5,2638.4,1.40272349]
[1748446964967,0.75784,2638.0,2637.9,3.2078]
[1748446965468,0.75784,2638.0,2637.9,4.5125]
[1748446966072,0.75784,2638.0,2637.9,5.27037]
[1748446966370,0.00569163,2638.2,2638.1,0.75781]
[1748446968871,0.00569163,2638.2,2638.1,5.75781]
[1748446969074,0.75766,2638.7,2638.6,0.75767]
[1748446969673,0.75766,2638.7,2638.6,2.09307]
[1748446969876,0.75766,2638.7,2638.6,19.82907]
[1748446970070,0.75763,2638.8,2638.7,0.75761]
[1748446970271,0.75761,2638.9,2638.8,0.75759]
[1748446970471,0.75761,2638.9,2638.8,2.09299]
[1748446970677,0.75761,2638.9,2638.8,1.3354]
[1748446972578,0.75761,2638.9,2638.8,2.76451]
[1748446972780,0.75761,2638.9,2638.8,2.0069]
[1748446973079,0.75761,2638.9,2638.8,2.76451]
[1748446974276,0.75756,2639.0,2638.9,0.75756]
[1748446974484,0.75756,2639.0,2638.9,2.08096]
[1748446975976,0.75756,2639.0,2638.9,1.3234]
[1748446976781,0.75756,2639.0,2638.9,2.08099]
[1748446976980,0.75756,2639.0,2638.9,1.62106128]
[1748446977383,0.75756,2639.0,2638.9,2.08099]
[1748446977576,5.10142,2639.4,2638.9,3.51499113]
[1748446977577,3.2078,2639.4,2638.9,3.51499113]
[1748446977776,3.96528,2639.4,2639.3,0.75747]
[1748446978075,3.96528,2639.4,2639.3,0.29763113]
[1748446978280,3.96528,2639.4,2639.3,1.054985]
[1748446978481,3.96528,2639.4,2639.3,1.05498078]
[1748446979076,3.96528,2639.4,2639.3,1.53912537]
[1748446979285,3.96528,2639.4,2639.3,2.29659401]
[1748446979483,3.96528,2639.4,2639.3,2.29657606]
[1748446979679,3.96528,2639.4,2639.3,2.29652607]
[1748446979983,3.96528,2639.4,2639.3,1.99917]
[1748446980186,3.96528,2639.4,2639.3,2.29652628]
[1748446980380,3.96528,2639.4,2639.3,2.29652778]
[1748446980581,3.96528,2639.4,2639.3,1.53905669]
[1748446980882,3.96528,2639.4,2639.3,1.5390559]
[1748446981284,10.20698,2639.4,2639.3,0.2973559]
[1748446981681,0.7575,2639.2,2639.1,0.00569163]
[1748446981882,0.7575,2639.2,2639.1,0.30306388]
[1748446982081,0.7575,2639.2,2639.1,0.00569163]
[1748446982483,9.6875,2639.2,2639.1,0.29736947]
[1748446982683,0.7577,2638.5,2638.4,1.8123264]
[1748446982890,1.89414,2638.7,2638.3,1.3407]
[1748446982891,0.75773,2638.4,2638.3,1.3407]
[1748446983184,0.6541,2638.6,2638.5,0.7577]
[1748446983388,0.75773,2638.5,2638.4,0.75771]
[1748446983583,0.75775,2638.4,2638.3,0.75774]
[1748446984088,0.75776,2638.3,2638.2,0.76346163]
[1748446984585,0.00569163,2638.7,2638.2,0.00569163]
[1748446984791,0.07463908,2639.4,2639.3,0.75747]
[1748446985087,1e-08,2639.4,2639.3,22.41547]
[1748446985287,1e-08,2639.4,2639.3,27.41547]
[1748446985786,1e-08,2639.4,2639.3,27.95227182]
[1748446985983,1e-08,2639.4,2639.3,29.22571951]
[1748446986283,1e-08,2639.4,2639.3,27.95187932]
[1748446986485,0.34473767,2640.1,2639.7,0.75734]
[1748446986692,0.34473767,2640.1,2640.0,0.75727]
[1748446986885,0.34473767,2640.1,2640.0,1.31142804]
[1748446987083,0.34473767,2640.1,2639.8,3.929]
[1748446987084,0.7573,2639.9,2639.8,3.929]
[1748446987485,0.7573,2639.9,2639.8,4.48321696]
[1748446987984,0.7573,2639.9,2639.8,5.03743698]
[1748446988290,0.7573,2639.9,2639.8,5.59340789]
[1748446988486,0.7573,2639.9,2639.8,5.03743698]
[1748446988686,0.75728,2640.0,2639.8,6.35066032]
[1748446988884,0.7573,2639.9,2639.8,1.10843698]
[1748446989290,0.7573,2639.9,2639.8,1.66424353]
[1748446989489,0.7573,2639.9,2639.8,4.87204353]
[1748446990189,0.7573,2639.9,2639.8,5.42321524]
[1748446990587,0.34473767,2640.1,2639.8,5.97427469]
[1748446990791,1.10198767,2640.1,2640.0,0.75727]
[1748446991184,1.10198767,2640.1,2640.0,1.30805577]
[1748446991385,1.10198767,2640.1,2640.0,0.55078577]
[1748446991584,0.34473767,2640.1,2640.0,1.30804453]
[1748446992293,0.34473767,2640.1,2640.0,0.75727]
[1748446992480,1.10197767,2640.1,2640.0,0.75727]
[1748446992683,1.10197767,2640.1,2640.0,0.550205]
[1748446992885,0.75727,2640.0,2639.9,5.95128]
[1748446993193,0.75727,2640.0,2639.9,0.54989898]
[1748446993587,2.05977,2640.0,2639.9,0.54989898]
[1748446993787,0.7573,2639.9,2639.8,5.97427469]
[1748446994088,3.9651,2639.9,2639.8,2.76647469]
[1748446994291,4.5802,2639.9,2639.8,3.31668227]
[1748446994592,4.5802,2639.9,2639.8,3.61298143]
[1748446994993,4.5802,2639.9,2639.8,3.31674404]
[1748446995195,1.3724,2639.9,2639.8,3.61314674]
[1748446995397,1.3724,2639.9,2639.8,3.31684157]
[1748446995689,1.3724,2639.9,2639.8,3.61313241]
[1748446995891,4.5802,2639.9,2639.8,2.76647469]
[1748446996095,9.5802,2639.9,2639.8,2.80363772]
[1748446996292,9.5802,2639.9,2639.8,1.97199772]
[1748446996492,9.5802,2639.9,2639.8,1.42150863]
[1748446996687,9.5802,2639.9,2639.8,1.42152236]
[1748446996894,9.5802,2639.9,2639.8,1.42152978]
[1748446997095,9.5802,2639.9,2639.8,1.12497469]
[1748446997290,9.5802,2639.9,2639.8,1.42154193]
[1748446997491,9.5802,2639.9,2639.8,1.42146421]
[1748446997990,9.5802,2639.9,2639.8,1.42147401]
[1748446998194,9.5802,2639.9,2639.8,1.42148488]
[1748446998393,9.5802,2639.9,2639.8,0.49411488]
[1748446998595,9.5802,2639.9,2639.8,0.29654804]
[1748446998795,0.75736,2639.7,2639.6,6.32e-06]
[1748446998998,5.75736,2639.7,2639.6,6.32e-06]
[1748446999606,7.06146,2639.7,2639.6,6.32e-06]
[1748447002401,2.06146,2639.7,2639.6,6.32e-06]
[1748447003094,0.75736,2639.7,2639.6,6.32e-06]
[1748447005302,7.09886,2639.7,2639.6,6.32e-06]
[1748447008500,2.09886,2639.7,2639.6,6.32e-06]
[1748447012505,7.09886,2639.7,2639.6,6.32e-06]
[1748447015601,8.11295636,2639.7,2639.6,6.32e-06]
[1748447016000,8.18759544,2639.7,2639.6,6.32e-06]
[1748447018102,0.75767,2638.6,2638.5,1.3129]
[1748447018303,3.96547,2638.6,2638.5,1.3129]
[1748447024504,0.75767,2638.6,2638.5,1.3129]
[1748447027007,3.96547,2638.6,2638.5,1.3129]
[1748447031311,4.04010908,2638.6,2638.5,1.3129]
[1748447034909,0.83230908,2638.6,2638.5,1.3129]
[1748447035108,0.83230908,2638.6,2638.5,4.5207]
[1748447035409,1.89387,2639.2,2638.5,9.5207]
[1748447035609,1.89367,2639.5,2638.8,3.2078]
[1748447035810,0.75762,2638.9,2638.8,3.2078]
[1748447037220,0.75762,2638.9,2638.8,8.2078]
[1748447038715,0.75761,2639.0,2638.8,8.96545]
[1748447038906,0.75741,2639.7,2639.5,0.75744]
[1748447039110,0.75741,2639.7,2639.1,1.89389]
[1748447039111,0.75739,2639.7,2639.6,2.5875]
[1748447040013,1.89373,2639.4,2638.8,4.67964]
[1748447040320,0.75753,2639.2,2639.1,1.9407]
[1748447041525,3.2078,2639.7,2639.3,0.75749]
[1748447041717,0.75746,2639.5,2639.4,1.9387]
[1748447042618,0.75765,2638.8,2638.7,2.4153]
[1748447042920,0.75773,2638.5,2638.4,2.5964]
[1748447045319,3.96553,2638.5,2638.4,2.5964]
[1748447045818,3.96553,2638.5,2638.4,1.9365]
[1748447046019,5.25193,2638.5,2638.4,1.9365]
[1748447046722,2.04413,2638.5,2638.4,1.9365]
[1748447046919,5.25193,2638.5,2638.4,1.9365]
[1748447047923,3.96553,2638.5,2638.4,1.9365]
[1748447048126,0.75773,2638.5,2638.4,1.9365]
[1748447048824,3.96553,2638.5,2638.4,1.9365]
[1748447049524,3.96553,2638.5,2638.4,1.3124]
[1748447050229,5.23853,2638.5,2638.4,1.3124]
[1748447051224,0.75776,2638.4,2638.3,0.00569163]
[1748447051528,1.99016,2638.4,2638.3,0.00569163]
[1748447057030,1.99016,2638.4,2638.1,1.3432]
[1748447057031,0.75796,2637.7,2637.6,3.2078]
[1748447057633,1.37968,2638.0,2637.6,3.96579]
[1748447057935,0.75799,2637.6,2637.3,3.2078]
[1748447058134,0.75799,2637.6,2637.3,3.21349163]
[1748447058432,0.75799,2637.6,2637.4,1.2472]
[1748447058732,0.75799,2637.6,2637.5,0.6637]
[1748447058934,0.75802,2637.5,2637.4,1.2472]
[1748447059327,5.74676163,2637.8,2637.4,1.2472]
[1748447059636,0.75802,2637.5,2637.4,2.00525]
[1748447059835,0.75802,2637.5,2637.4,1.2472]
[1748447062439,2.67942,2637.5,2637.4,1.2472]
[1748447064534,1.37232,2637.5,2637.4,1.2472]
[1748447064733,0.75802,2637.5,2637.4,1.2472]
[1748447065539,1.90055163,2637.8,2637.4,2.00523]
[1748447065837,0.75802,2637.5,2637.4,1.2472]
[1748447067833,0.75802,2637.5,2637.4,10.1702]
[1748447068027,0.75802,2637.5,2637.4,5.1702]
[1748447068227,0.00569163,2637.8,2637.7,0.75796]
[1748447068428,0.76363163,2637.8,2637.7,0.75796]
[1748447068631,0.76363163,2637.8,2637.7,2.73636]
[1748447068932,0.00569163,2637.8,2637.7,3.38596]
[1748447069441,0.76363163,2637.8,2637.7,3.38596]
[1748447069740,0.00569163,2637.8,2637.7,3.38596]
[1748447070241,0.00569163,2637.8,2637.7,8.38596]
[1748447070537,0.00569163,2637.8,2637.7,3.38596]
[1748447070937,0.00569163,2637.8,2637.7,8.38596]
[1748447071339,0.76363163,2637.8,2637.7,8.38596]
[1748447073041,0.76363163,2637.8,2637.7,30.01796]
[1748447073442,0.76363163,2637.8,2637.7,25.01796]
[1748447074442,0.00569163,2637.8,2637.7,25.01796]
[1748447074641,0.00569163,2637.8,2637.7,6.546]
[1748447074642,0.76363163,2637.8,2637.7,6.546]
[1748447074839,0.76363163,2637.8,2637.7,25.01696]
[1748447075045,0.00569163,2637.8,2637.7,25.01696]
[1748447075844,0.08033071,2637.8,2637.7,25.01696]
[1748447077645,0.08033071,2637.8,2637.7,24.258]
[1748447077646,0.83827071,2637.8,2637.7,24.258]
[1748447078342,0.83827071,2637.8,2637.7,2.628]
[1748447078739,0.83827071,2637.8,2637.7,3.38596]
[1748447078938,0.08033071,2637.8,2637.7,3.38596]
[1748447079746,0.08033071,2637.8,2637.7,21.09796]
[1748447079944,0.08033071,2637.8,2637.7,3.38596]
[1748447080143,0.08033071,2637.8,2637.7,21.09796]
[1748447080738,0.83827071,2637.8,2637.7,21.09796]
[1748447081343,0.08033071,2637.8,2637.7,1.9535]
[1748447081538,0.83827071,2637.8,2637.7,20.42246]
[1748447081848,0.83827071,2637.8,2637.7,19.6645]
[1748447082240,0.83827071,2637.8,2637.7,19.0149]
[1748447082446,2.08507071,2637.8,2637.7,19.0149]
[1748447083247,0.75802,2637.5,2637.4,18.3338]
[1748447083443,0.75802,2637.5,2637.4,19.6213]
[1748447083639,0.75802,2637.5,2637.4,18.9985]
[1748447084845,0.75802,2637.5,2637.4,1.2875]
[1748447085053,0.75802,2637.5,2637.4,18.9975]
[1748447086047,2.01582,2637.5,2637.4,18.9975]
[1748447086539,0.75805,2637.4,2637.3,0.00569163]
[1748447086744,0.75805,2637.4,2637.3,17.71569163]
[1748447086745,2.65805,2637.4,2637.3,17.71569163]
[1748447087248,0.75805,2637.4,2637.3,17.71569163]
[1748447087448,0.75805,2637.4,2637.3,1.35589163]
[1748447087840,2.10075,2637.4,2637.3,1.35589163]
[1748447088036,2.10075,2637.4,2637.3,0.00569163]
[1748447089541,5.30855,2637.4,2637.3,0.00569163]
[1748447090550,0.75834,2636.4,2636.3,2.25598253]
[1748447090850,0.75829,2636.6,2636.4,0.75833]
[1748447091150,0.75828,2636.6,2636.5,0.6135]
[1748447091552,6.34844,2637.0,2636.6,0.75827]
[1748447091744,0.75825,2636.7,2636.6,3.96607]
[1748447092048,0.75825,2636.7,2636.6,21.67807]